[Event "British Championship 2024"]
[Site "Hull"]
[Date "2024.07.31"]
[Round "4.1"]
[White "Howell, David W L"]
[Black "Royal, Shreyas"]
[Result "0-1"]
[Annotator "TA"]
[ECO "C54"]
[WhiteElo "2675"]
[BlackElo "2483"]
[PlyCount "130"]
[EventDate "2024.07.31"]
[EventCountry "GBR"]
[SourceTitle "playchess.com"]
[Source "ChessBase"]
[SourceQuality "1"]
[TimeControl "40/5400+30:1800+30"]

{[%evp 17,130,8,6,0,14,13,16,0,14,2,19,0,0,0,23,9,15,20,9,18,14,17,39,8,22,0,0,0,39,30,93,81,87,64,76,0,23,-20,-14,-68,-63,-81,-68,-87,-116,-103,0,-347,134,-347,-351,-351,0,0,0,0,0,0,0,0,0,-439,-406,-433,-399,-481,-445,-432,-448,-449,-448,-314,-355,-394,-344,-330,-378,-391,-398,-385,-332,-349,-349,-360,-353,-1035,-1018,-5393,-621,-29938,-1399,-29977,-29978,-29982,-29982,-29981,-29982,-29982,-29983,-29984,-29978,-29986,-29987,-29988,-29985,-29989,-29990,-29992,-29991,-29993,-29994,-29995,-29996,-29996,-1812]} 1. e4 {[%emt 0:08:31]} e5 {[%emt 0:00:06]} 2. Nf3 {[%emt 0:00:50]} Nc6 {[%emt 0:00:05]} 3. Bc4 {[%emt 0:00:28]} Bc5 {[%emt 0:00:06]} 4. c3 {[%emt 0:00:56]} Nf6 {[%emt 0:00:12]} 5. d4 {[%emt 0:00:09]} exd4 {[%emt 0:00:35]} 6. e5 {[%emt 0:00:10]} d5 {[%emt 0:00:14]} 7. Bb5 {[%emt 0:00:08]} Ne4 {[%emt 0:00:06]} 8. cxd4 {[%emt 0:00:05]} Bb6 {[%emt 0:00:40]} 9. Nc3 {[%emt 0:00:23]} O-O {[%emt 0:00:36]} 10. Be3 {[%emt 0:00:07]} Bg4 {[%emt 0:00:58]} 11. h3 {[%emt 0:01:00]} Bh5 {[%emt 0:00:07]} 12. Qc2 {[%emt 0:00:16] The position is equal.} Bg6 {[%emt 0:00:23]} 13. Qb3 {[%emt 0:00:11]} Ne7 {[%emt 0:00:08][%cal Bc6e7,Be7f5,Bf5e3][%mdl 32]} 14. O-O {[%emt 0:00:18]} c6 {[%emt 0:00:17] ...Nxc3 is the strong threat.} 15. Bd3 {[%emt 0:00:21]} Nf5 {[%emt 0:01:31][%cal Of5d4]} 16. Qc2 {[%emt 0:00:57]} Nxe3 {[%emt 0:00:49]} 17. fxe3 {[%emt 0:00:08]} Ng3 {[%emt 0:00:06] [#]} 18. Bxg6 {[%emt 0:00:08]} hxg6 {[%emt 0:00:05]} 19. Rf2 {[%emt 0:00:09]} Re8 {[%emt 0:08:25]} 20. a4 {[%emt 0:22:11]} (20. Kh2 $5 Nf5 $8 21. Re1 $14) 20... Rc8 {[%emt 0:06:27]} 21. Qb3 {[%emt 0:16:01]} f6 {[%emt 0:21:18]} 22. Qc2 {[%emt 0:11:00]} Nf5 {[%emt 0:12:36]} 23. g4 {[%emt 0:04:28]} fxe5 {[%emt 0:06:23]} 24. gxf5 $16 {[%emt 0:01:30]} e4 {[%emt 0:00:04]} 25. Ne1 {[%emt 0:27:46] Ng2 would now be deadly.} Qh4 {[%emt 0:00:32]} 26. Ne2 {[%emt 0:04:18]} (26. f6 $16 Kf7 (26... gxf6 27. Rh2 $16) 27. Rh2) 26... Qxh3 {[%emt 0:02:10]} 27. Qd2 {[%emt 0:00:24]} (27. fxg6 $5 Re5 (27... Qxe3 28. Ng2 $16) 28. dxe5 Qxe3 29. Nd4 (29. Nf4 Qxf4 30. a5 Bd4 $11) 29... Qg3+ 30. Ng2 Bxd4 31. Rd1 $14) 27... Bc7 {[%emt 0:03:30]} 28. fxg6 {[%emt 0:01:03]} (28. Nf4 $11 Qxf5 29. Nc2) 28... Re6 $1 $15 {[%emt 0:06:58] The board is on fire.} 29. Nf4 {[%emt 0:00:31]} Bxf4 {[%emt 0:00:04]} 30. Rxf4 {[%emt 0:00:05]} Rxg6+ {[%emt 0:00:02]} 31. Ng2 {[%emt 0:00:05]} Rh6 {[%emt 0:00:02] Black is much more active.} ({Black should play} 31... Re8 $17 {And now ...Ree6 would win.} 32. Qf2 Ree6 (32... Rh6 $2 33. Rh4 $18)) 32. Raf1 $2 {[%emt 0:00:16][%mdl 8192]} (32. Kf2 $1 $11 {and White is okay.}) 32... Qh2+ $1 $19 {[%emt 0:06:38]} 33. Kf2 {[%emt 0:00:01] [#]} Rg6 $1 {[%emt 0:00:07]} 34. Rg1 {[%emt 0:00:18] [#]} Rf8 $2 {[%emt 0:03:06]} (34... Rg3 $1 $19 {[%cal Rg3f3] aiming for ...Rf3+!} 35. Qb4 Rf3+ 36. Rxf3 exf3 37. Qxb7 Rf8 38. Qxc6 fxg2+ 39. Ke2 Qh5+ (39... Qxg1 40. Qxd5+ Rf7 41. Qd8+ Kh7 42. Qh4+ Kg6 43. Qg4+ Kf6 44. Qf3+ Kg5 45. Qxf7 $11) 40. Kd2 Rf2+ 41. Kc3 Kh7) 35. Rxf8+ $11 {[%emt 0:02:02]} Kxf8 {[%emt 0:00:01]} 36. Qb4+ $1 {[%emt 0:00:18]} Kg8 {[%emt 0:00:06]} 37. Kf1 {[%emt 0:00:17]} Rf6+ {[%emt 0:03:42]} (37... Rg3 $5 38. Qe7 $8 Rf3+ 39. Ke2 Rf6 $11 (39... Qxg1 40. Qe8+ Rf8 41. Qe6+ Kh7 42. Qh3+ Kg6 43. Qg4+ Kf7 44. Qf5+ Ke7 45. Qe5+ Kd7 46. Qxg7+ Ke8 47. Qe5+ Kd7 48. Qg7+ Ke8 49. Qe5+ Kf7 50. Qc7+ Ke6 51. Qe5+ Kd7 52. Qg7+ $11)) 38. Nf4 {[%emt 0:00:03][%cal Ob4e1]} Qh3+ {[%emt 0:00:11]} 39. Ke2 $2 {[%emt 0:01:32][%mdl 8192] White is now going downhill.} (39. Rg2 $1 $11 Qxe3 40. Rxg7+ Kh8 (40... Kxg7 41. Qe7+ Rf7 42. Qg5+ Kh8 43. Qh6+ Kg8 44. Qg6+ Kf8 45. Qh6+ Kg8 46. Qg5+ Rg7 47. Qd8+ Kf7 48. Qc7+ Kf6 49. Qe5+ Kf7 50. Qe6+ Kf8 51. Qf5+ Kg8 52. Qe6+ Kh7 53. Qf5+ Kg8 54. Qc8+ Kf7 55. Qc7+ Kf6 56. Qe5+ Kf7 57. Qf5+ Kg8 $11) 41. Rh7+ Kg8 42. Rg7+ Kh8 (42... Kxg7 43. Qe7+ Rf7 44. Qg5+ Kf8 45. Qh6+ Ke8 46. Qe6+ Re7 47. Qc8+ Kf7 48. Qf5+ Kg8 49. Qg5+ Kf7 50. Qh5+ Kg8 51. Qg4+ Rg7 52. Qc8+ Kf7 53. Qc7+ Ke8 54. Qc8+ Kf7 55. Qe6+ Kf8 56. Qf6+ Ke8 57. Qe6+ Re7 58. Qc8+ Kf7 59. Qf5+ Kg8 60. Qg5+ Kf7 61. Qg6+ Kf8 62. Qf5+ Rf7 63. Qc8+ Kg7 64. Qg4+ Kf8 65. Qc8+ Kg7 66. Qg4+ Kh8 67. Qh5+ Kg8 68. Qg4+ Kf8 69. Qc8+ $11) 43. Rh7+ Kg8 44. Rg7+) 39... Qf3+ $19 {[%emt 0:00:04]} 40. Kd2 {[%emt 0:00:33]} Rxf4 $1 {[%emt 0:00:04]} 41. exf4 {[%emt 0:07:16]} Qf2+ {[%emt 0:00:44]} 42. Kc3 {[%emt 0:00:10]} Qxg1 {[%emt 0:10:12]} 43. Qxb7 {[%emt 0:01:36][%mdl 4096] Endgame. KQ-KQ} Qc1+ {[%emt 0:11:48]} 44. Kb3 {[%emt 0:00:21]} Qc4+ {[%emt 0:00:17]} 45. Ka3 {[%emt 0:00:47]} Qxd4 {[%emt 0:00:09] Strongly threatening ...e3.} 46. Qxc6 {[%emt 0:01:14]} Kf7 {[%emt 0:01:22] Inhibits Qe8+.} 47. Qd7+ {[%emt 0:08:11]} Kf6 {[%emt 0:00:06] Threatens to win with ...e3.} 48. Qd8+ {[%emt 0:00:20]} Kf5 {[%emt 0:00:32]} 49. Qg5+ {[%emt 0:00:29]} Ke6 {[%emt 0:00:04]} 50. Qg4+ {[%emt 0:06:12]} Kd6 {[%emt 0:00:48]} 51. Qg6+ $2 {[%emt 0:00:18]} (51. Qf5 Ke7 52. Qg5+ Qf6 53. Qxd5) 51... Kc5 {[%emt 0:01:50]} 52. Qe8 {[%emt 0:00:51]} Qb4+ {[%emt 0:01:49]} 53. Ka2 {[%emt 0:00:02]} Kc4 {[%emt 0:02:23]} 54. Qc6+ {[%emt 0:04:00]} Kd4 {[%emt 0:00:05] Black mates.} 55. Qd7 {[%emt 0:00:13]} Qc4+ {[%emt 0:00:18]} 56. b3 {[%emt 0:02:11]} Qc2+ {[%emt 0:00:22]} 57. Ka3 {[%emt 0:00:21]} Qc5+ {[%emt 0:01:48]} 58. Ka2 {[%emt 0:00:40]} Kd3 {[%emt 0:01:43]} 59. Qxg7 {[%emt 0:00:42]} e3 {[%emt 0:00:14]} 60. Qg1 {[%emt 0:02:11]} Kd2 {[%emt 0:00:42]} 61. Qg5 {[%emt 0:02:19]} e2 {[%emt 0:00:33]} 62. f5+ {[%emt 0:00:04]} Qe3 {[%emt 0:00:33]} 63. Qg2 {[%emt 0:00:07]} Kc1 {[%emt 0:00:12]} 64. f6 {[%emt 0:00:43]} Qd2+ {[%emt 0:00:12]} 65. Ka3 {[%emt 0:00:06]} Qb2+ {[%emt 0:00:02] Weighted Error Value: White=0.50/Black=0.19 (very precise) .  Loses game:     	White=3     	---        Missed win:     	---       	Black=1      Mistake:       	White=3     	Black=2      Inaccurate:     	White=3     	Black=1      OK:         	White=11    	Black=17     Best:        	White=10    	Black=5      Strong:       	White=1     	Black=4} (65... e1=Q $142 66. Qxd2+ Qxd2 (66... Kxd2 {is a self mate.} 67. Kb4 Qe3 68. a5 a6 69. Ka3 Kc3 70. Ka4 Qe1 71. f7 Qa1#) 67. f7 a5 68. f8=Q Qb2#) 0-1

[Event "British Championship 2024"]
[Site "Hull"]
[Date "2024.07.31"]
[Round "4.2"]
[White "Jones, Gawain C B"]
[Black "Wadsworth, Matthew J"]
[Result "1-0"]
[Annotator "TA"]
[ECO "A07"]
[WhiteElo "2633"]
[BlackElo "2467"]
[PlyCount "77"]
[EventDate "2024.07.31"]
[EventCountry "GBR"]
[SourceTitle "playchess.com"]
[Source "ChessBase"]
[SourceQuality "1"]
[TimeControl "40/5400+30:1800+30"]

{[%evp 9,77,16,29,31,38,9,53,64,52,50,65,29,47,31,29,24,49,21,36,40,54,31,24,16,24,25,102,50,72,71,64,50,151,163,147,158,134,146,154,46,56,29,128,139,137,0,0,-60,0,0,0,0,0,0,0,0,564,0,561,533,563,565,683,672,751,663,904,802,759,733]} 1. Nf3 {[%emt 0:00:20]} d5 {[%emt 0:00:36]} 2. g3 {[%emt 0:00:08]} b6 {[%emt 0:00:19]} 3. Bg2 {[%emt 0:08:43]} Bb7 {[%emt 0:01:13]} 4. O-O {[%emt 0:01:11]} Nd7 {[%emt 0:01:49]} 5. d3 {[%emt 0:07:11]} Ngf6 {[%emt 0:09:05]} 6. c4 {[%emt 0:01:53] A07: Réti Opening: New York and Capablanca Systems.} e6 {[%emt 0:07:45]} 7. cxd5 {[%emt 0:03:43]} Nxd5 {[%emt 0:02:11]} 8. e4 {[%emt 0:15:29]} N5f6 {[%emt 0:00:54]} 9. Nc3 {[%emt 0:00:32]} Be7 {[%emt 0:05:23]} 10. Bf4 $146 {[%emt 0:02:34]} ({Predecessor:} 10. Re1 O-O 11. d4 c5 12. d5 exd5 13. e5 Ne8 14. Nxd5 Nc7 15. Nxc7 Qxc7 16. Bf4 {1-0 Kozul,Z (2583)-Mastrovasilis,A (2524) EU-ch 9th Plovdiv 2008 (11)}) 10... O-O {[%emt 0:03:16]} 11. Qc2 {[%emt 0:01:28]} c5 {[%emt 0:03:02]} 12. Rfd1 {[%emt 0:04:30]} Nh5 {[%emt 0:05:23]} 13. Be3 {[%emt 0:01:05]} e5 {[%emt 0:02:59]} 14. a4 {[%emt 0:00:12]} a6 {[%emt 0:03:21]} 15. Qb3 {[%emt 0:01:50]} Nhf6 {[%emt 0:06:16]} 16. Bh3 {[%emt 0:00:38]} Bd6 {[%emt 0:03:13]} 17. Nh4 {[%emt 0:08:22]} Nb8 {[%emt 0:15:12]} (17... Re8 $11) 18. Nf5 {[%emt 0:05:20]} ({White should play} 18. a5 $1 $16) 18... g6 {[%emt 0:02:03]} 19. Nxd6 {[%emt 0:09:44]} Qxd6 {[%emt 0:00:09]} 20. f4 {[%emt 0:00:25]} Bc8 {[%emt 0:03:22]} (20... exf4 $14 21. Bxf4 (21. gxf4 Nh5 $14) 21... Qd4+ 22. Kg2 Bc8) 21. fxe5 $16 {[%emt 0:06:53]} Qxe5 {[%emt 0:00:29]} 22. d4 {[%emt 0:00:25]} Qh5 {[%emt 0:01:20]} 23. Bxc8 $1 {[%emt 0:00:23]} (23. Qxb6 $6 Qf3 24. Bxc8 Qxe3+ 25. Kg2 Nxe4 $11) 23... Rxc8 {[%emt 0:00:10]} 24. Rf1 {[%emt 0:02:12]} (24. Qxb6 $2 Ng4 25. Rd2 Nxe3 $19) (24. Rd2 $1 $16) 24... Nbd7 $14 {[%emt 0:03:23] ...Ng4 would now be deadly.} 25. h4 {[%emt 0:01:23]} cxd4 {[%emt 0:07:45]} (25... Re8 $11) 26. Bxd4 $16 {[%emt 0:00:06]} Nc5 {[%emt 0:00:32] [#]} 27. Qa2 {[%emt 0:08:32]} (27. Qxb6 $6 Qg4 (27... Nfxe4 $2 28. Nxe4 Nxe4 29. Rxf7 $18) 28. Qxf6 Qxg3+ 29. Kh1 Qh3+ 30. Kg1 Qg3+ 31. Kh1 Qh3+ 32. Kg1 Qg3+ $11) (27. Qc2 $1 $16 Nfd7 28. Nd5) 27... Qg4 $1 $11 {[%emt 0:02:10]} 28. Be5 {[%emt 0:01:55] [#]} (28. Kh2 $2 Ncxe4 29. Be5 (29. Bxf6 $2 {loses.} Qxg3+ 30. Kh1 Nxf6 $19) (29. Nxe4 $2 Rc2+ 30. Rf2 Qxe4 $19) 29... Rc5 30. Nxe4 (30. Bxf6 $2 Qxg3+ 31. Kh1 Nxf6 $19) 30... Rc2+ 31. Nf2 Qf3 32. Bxf6 (32. Kg1 $2 Ng4 $19) 32... Rxf2+ 33. Rxf2 Qxf2+ 34. Kh3 Qxf6 $19) (28. Rxf6 $11 Qxg3+ 29. Kf1 Qh3+ 30. Kg1 Qg3+ 31. Kf1 Qh3+ 32. Kg1 Qg3+) 28... Nd3 {[%emt 0:03:24]} 29. Bd6 {[%emt 0:01:05]} Rc6 {[%emt 0:01:56]} 30. Rxf6 {[%emt 0:00:30]} Rxd6 $1 {[%emt 0:00:26]} 31. Qxf7+ {[%emt 0:00:11]} Kh8 {[%emt 0:00:04]} 32. Ne2 {[%emt 0:01:25]} (32. Rxd6 $2 {perishes.} Qxg3+ 33. Kf1 Qxd6 $19) (32. Kg2 $5 Rd7 $8 33. Qb3 $11) 32... Rxf6 $4 {[%emt 0:02:41][%mdl 8192]} (32... Rdd8 $11 33. Rxb6 Qxe2 34. Qf6+ Kg8 35. Qe6+ Kg7 36. Qf6+ Kh6 37. Qg5+ Kg7 38. Qe7+ Kh6 39. Qg5+ Kg7 40. Qf6+ Kg8 41. Qe6+ Kg7 42. Qf6+) 33. Qxf6+ $18 {[%emt 0:00:06]} Kg8 {[%emt 0:00:04] White must now prevent ...Rf8.} 34. Qc6 {[%emt 0:02:20]} Rd8 {[%emt 0:01:27]} 35. Qxb6 {[%emt 0:00:15]} Qc8 {[%emt 0:04:01]} 36. Rd1 {[%emt 0:01:03]} Kg7 {[%emt 0:00:07]} 37. Nd4 {[%emt 0:01:14]} Nc5 {[%emt 0:00:48] [#] Against Ne6+} 38. Qxd8 $3 {[%emt 0:00:39][%mdl 512]} Qxd8 {[%emt 0:00:05] [#]} 39. Nf5+ $1 {[%emt 0:00:04][%mdl 512]} 1-0

[Event "British Championship 2024"]
[Site "Hull"]
[Date "2024.07.31"]
[Round "4.3"]
[White "Han, Yichen"]
[Black "Adams, Michael"]
[Result "1/2-1/2"]
[Annotator "TA"]
[ECO "C47"]
[WhiteElo "2414"]
[BlackElo "2670"]
[PlyCount "30"]
[EventDate "2024.07.31"]
[EventCountry "GBR"]
[SourceTitle "playchess.com"]
[Source "ChessBase"]
[SourceQuality "1"]
[TimeControl "40/5400+30:1800+30"]

{[%evp 9,30,0,4,6,16,12,15,6,35,28,36,39,33,42,41,41,37,32,25,19,27,18,40]} 1. e4 {[%emt 0:00:02]} e5 {[%emt 0:00:07]} 2. Nf3 {[%emt 0:00:04]} Nc6 {[%emt 0:00:04]} 3. Nc3 {[%emt 0:00:10]} Nf6 {[%emt 0:00:14]} 4. h3 {[%emt 0:00:16]} Bb4 {[%emt 0:04:44]} 5. Nd5 {[%emt 0:00:12]} Nxd5 {[%emt 0:07:52]} 6. exd5 {[%emt 0:00:12]} e4 {[%emt 0:03:41]} 7. dxc6 {[%emt 0:01:23]} exf3 {[%emt 0:00:07]} 8. Qxf3 {[%emt 0:00:12]} bxc6 {[%emt 0:02:04]} 9. c3 {[%emt 0:01:39]} Be7 {[%emt 0:03:16]} 10. d4 {[%emt 0:00:51]} O-O {[%emt 0:00:51]} 11. Bd3 {[%emt 0:00:36]} a5 {[%emt 0:01:32]} 12. O-O {[%emt 0:01:31]} Ba6 {[%emt 0:00:05]} 13. Re1 {[%emt 0:01:53] [#] Strongly threatening Bxa6.} Bxd3 {[%emt 0:04:41]} 14. Qxd3 {[%emt 0:00:08]} a4 {[%emt 0:06:53]} 15. Bf4 {[%emt 0:04:15][%cal Of4c7]} d5 {[%emt 0:06:02] Weighted Error Value: White=0.01 (flawless) /Black=0.06 (flawless) .  Inaccurate:     	---       	Black=1      OK:         	White=6     	Black=5      Best:        	---       	Black=1} 1/2-1/2

[Event "British Championship 2024"]
[Site "Hull"]
[Date "2024.07.31"]
[Round "4.4"]
[White "Conquest, Stuart C"]
[Black "Gasanov, Eldar"]
[Result "1-0"]
[Annotator "TA"]
[ECO "B93"]
[WhiteElo "2510"]
[BlackElo "2469"]
[PlyCount "53"]
[EventDate "2024.07.31"]
[EventCountry "GBR"]
[SourceTitle "playchess.com"]
[Source "ChessBase"]
[SourceQuality "1"]
[TimeControl "40/5400+30:1800+30"]

{[%evp 20,53,0,-42,-37,-35,-24,-27,-26,-35,0,0,61,62,85,88,64,92,324,339,297,315,326,329,344,339,1810,1762,6510,6503,1237,1191,1442,1459,3605,2949]} 1. e4 {[%emt 0:00:23]} c5 {[%emt 0:00:54]} 2. Nf3 {[%emt 0:00:21]} d6 {[%emt 0:00:35]} 3. d4 {[%emt 0:01:18]} Nf6 {[%emt 0:00:14]} 4. Nc3 {[%emt 0:00:43]} cxd4 {[%emt 0:00:09]} 5. Nxd4 {[%emt 0:00:08]} a6 {[%emt 0:00:40]} 6. Be3 {[%emt 0:06:38]} Ng4 {[%emt 0:00:54]} 7. Bc1 {[%emt 0:03:22]} Nf6 {[%emt 0:00:24]} 8. f4 {[%emt 0:04:22]} e5 {[%emt 0:03:43]} 9. Nf3 {[%emt 0:01:29]} Nbd7 {[%emt 0:00:08]} 10. Bc4 {[%emt 0:01:52]} Be7 {[%emt 0:05:53]} 11. O-O {[%emt 0:01:40]} b5 {[%emt 0:06:35]} 12. Bb3 {[%emt 0:08:00]} Bb7 {[%emt 0:02:54]} 13. fxe5 {[%emt 0:12:26]} dxe5 {[%emt 0:11:59][%cal Oe8g8] Black has an edge.} 14. Nh4 {[%emt 0:15:50][%cal Bf3h4,Bh4f5,Bf5h6,Bh6f7][%mdl 32]} O-O {[%emt 0:06:11][%cal Od7c5,Be8g8,Bg8g7,Bg7h6][%mdl 32]} (14... Bxe4 $2 15. Nxe4 Nxe4 16. Bxf7+ Kf8 17. Bd5+ Ndf6 18. Be3 $18 (18. Bxe4 Qxd1 19. Rxd1 Nxe4 $16)) 15. Nf5 $1 {[%emt 0:02:00]} b4 {[%emt 0:03:26]} (15... Bxe4 $2 {perishes.} 16. Nxe4 Nxe4 17. Qg4 $18) (15... Nxe4 $2 {loses.} 16. Qg4 Bf6 17. Nxe4 $18) (15... Kh8 $11) 16. Nd5 $1 $14 {[%emt 0:02:45] White is much more active.} Nxd5 {[%emt 0:04:06]} 17. exd5 {[%emt 0:08:44] Qg4 is the strong threat.} Bc5+ {[%emt 0:05:42]} 18. Kh1 $1 {[%emt 0:00:28] Black must now prevent Qg4.} g6 $2 {[%emt 0:00:15] [#]} (18... Kh8 $16) 19. Nh6+ $1 $18 {[%emt 0:07:26]} Kg7 {[%emt 0:00:26] [#]} 20. Nxf7 {[%emt 0:03:30][%mdl 512]} Rxf7 {[%emt 0:16:13] [#]} 21. Bh6+ $1 {[%emt 0:00:18][%mdl 512]} Kxh6 {[%emt 0:01:21]} 22. Rxf7 {[%emt 0:00:10]} Bc8 $2 {[%emt 0:02:35]} (22... Qg5) 23. Qd2+ {[%emt 0:04:32] White is clearly winning.} g5 {[%emt 0:00:30]} 24. Raf1 {[%emt 0:01:10]} e4 {[%emt 0:05:56]} 25. Qe2 {[%emt 0:03:23][%cal Of7h7] White threatens Rxh7+! and mate.} Qe8 {[%emt 0:03:23]} 26. Ba4 {[%emt 0:02:20] Bxd7 would kill now.} Bd4 {[%emt 0:01:19]} 27. Qc4 {[%emt 0:03:31][%csl LRb4,LRd4] Black did not feel at home in the position after the opening.   Weighted Error Value: White=0.04 (flawless) /Black=0.42.  Loses game:     	---       	Black=1      Mistake:       	---       	Black=2      Inaccurate:     	---       	Black=2      OK:         	White=2     	Black=2      Best:        	White=1     	Black=2      Strong:       	White=4     	---        Brilliant:      	White=2     	---} 1-0

[Event "British Championship 2024"]
[Site "Hull"]
[Date "2024.07.31"]
[Round "4.5"]
[White "Wells, Peter K"]
[Black "Ghasi, Ameet K"]
[Result "0-1"]
[Annotator "TA"]
[ECO "B12"]
[WhiteElo "2354"]
[BlackElo "2496"]
[PlyCount "55"]
[EventDate "2024.07.31"]
[EventCountry "GBR"]
[SourceTitle "playchess.com"]
[Source "ChessBase"]
[SourceQuality "1"]
[TimeControl "40/5400+30:1800+30"]

{[%evp 11,55,8,12,0,0,-1,2,-11,-2,-4,-18,-10,-8,-10,-19,-19,-11,-15,0,0,0,0,0,0,0,0,0,11,12,7,0,0,1,0,0,0,0,0,0,0,0,-2,-16,-156,185,-746]} 1. e4 {[%emt 0:02:31]} c6 {[%emt 0:02:35]} 2. d4 {[%emt 0:00:35]} d5 {[%emt 0:00:04]} 3. e5 {[%emt 0:00:42]} Bf5 {[%emt 0:01:01]} 4. h4 {[%emt 0:00:58]} h5 {[%emt 0:00:10]} 5. Bd3 {[%emt 0:01:39]} Bxd3 {[%emt 0:00:24]} 6. Qxd3 {[%emt 0:00:05]} e6 {[%emt 0:00:04]} 7. Bg5 {[%emt 0:01:57]} Qb6 {[%emt 0:02:01]} 8. Nd2 {[%emt 0:02:31]} c5 {[%emt 0:00:28]} 9. c4 {[%emt 0:02:12] The position is equal.} Qxb2 {[%emt 0:01:37]} 10. Rd1 {[%emt 0:04:58] [#] cxd5 would now be deadly.} Nc6 {[%emt 0:01:52][%cal Bb8c6,Bc6b4,Bb4c2][%mdl 32]} (10... Qxa2 11. Ne2 $16) 11. Ne2 {[%emt 0:01:51] And now cxd5 would win.} Nb4 {[%emt 0:03:51]} 12. Qf3 {[%emt 0:02:24] Strongly threatening 0-0.} Nc2+ {[%emt 0:00:37]} 13. Kf1 {[%emt 0:00:05]} Nxd4 {[%emt 0:00:20]} 14. Nxd4 {[%emt 0:01:35]} Qxd4 {[%emt 0:01:09]} 15. Qb3 {[%emt 0:23:39][%cal Rb3b5]} Be7 $1 {[%emt 0:02:02]} (15... Qxe5 16. Qb5#) 16. cxd5 {[%emt 0:11:20]} exd5 {[%emt 0:13:02] Threatens to win with ...0-0-0.} 17. Qxb7 {[%emt 0:14:02]} Rd8 {[%emt 0:04:34]} 18. Rh3 {[%emt 0:08:27]} Rh6 {[%emt 0:09:49]} 19. Bxh6 {[%emt 0:10:15]} Nxh6 {[%emt 0:00:21]} 20. Qb5+ {[%emt 0:00:44]} (20. Qxa7 Ng4 (20... Qxe5 $2 21. Re3 $18) 21. Rf3 Nh2+ (21... Nxe5 22. Re3 $11) (21... Qxe5 22. g3 $15) 22. Ke1 Nxf3+ 23. Nxf3 Qe4+ 24. Kf1 Qf5 $15 (24... Bxh4 25. Qxc5 Be7 26. Qb5+ Kf8 27. a4 $11)) 20... Kf8 {[%emt 0:01:00][%cal Oc5c4] ...c4! is the strong threat.} 21. Qe2 {[%emt 0:00:36]} Ng4 {[%emt 0:00:56]} 22. Nf3 {[%emt 0:01:58]} Qf4 {[%emt 0:05:43]} 23. e6 {[%emt 0:00:35]} f6 {[%emt 0:09:53][%cal Bf7f6,Bf6f5][%mdl 32] Prevents Ng5} 24. Qc2 {[%emt 0:01:36] Dodges g6} f5 $1 {[%emt 0:04:47]} 25. Ng5 $36 {[%emt 0:00:09][%mdl 2048] Hoping for Nf7. White fights for an advantage.} g6 {[%emt 0:06:31][%cal Od5d4]} 26. Rhd3 {[%emt 0:05:12]} c4 {[%emt 0:12:16] Some like it hot} 27. Qb2 {[%emt 0:00:46] [#]} (27. Rxd5 $2 {perishes.} Rxd5 28. Nf3 Rxd1+ 29. Qxd1 Qd6 $19) (27. Rc3 $1 $11) 27... Kg8 $2 {[%emt 0:00:31]} ({And not} 27... cxd3 28. Qh8#) (27... Bxg5 $2 28. g3 Qxf2+ 29. Qxf2 Nxf2 30. Kxf2 cxd3 31. hxg5) (27... Qxf2+ $1 $17 {keeps the pressure on.} 28. Qxf2 Nxf2 29. Kxf2 cxd3 30. Rxd3 Bxg5 31. hxg5 Ke7) 28. Rxd5 $4 {[%emt 0:00:00][%mdl 8192] Weighted Error Value: White=0.07 (flawless) /Black=0.16 (very precise) .  Loses game:     	---       	Black=1      Missed win:     	White=1     	---        Mistake:       	White=1     	---        OK:         	White=9     	Black=11     Best:        	---       	Black=3      Strong:       	---       	Black=2} (28. Nf7 $18 Bf6 29. Qd2 Qxd2 (29... Qh2 $2 30. Rh3 $18) 30. R3xd2) 0-1